Workbook

Sheet Piim
A1: Nimi | B1: Farm | C1: Juuni | D1: Juuli | E1: August | F1: Kokku | G1: Raport
A2: Hera | B2: Tuuli | C2: 870 | D2: 899 | E2: 806 | F2: =SUM(C2:E2) -> 2575 | G2: ="Lehm '"&A2&"', farm '"&B2&"', Kokku "&F2 -> Lehm 'Hera', farm 'Tuuli', Kokku 2575
A3: Aarem | B3: Pilvi | C3: 840 | D3: 806 | E3: 806 | F3: 2452 | G3: ="Lehm '"&A3&"', farm '"&B3&"', Kokku "&F3 -> Lehm 'Aarem', farm 'Pilvi', Kokku 2452
A4: Soovik | B4: Varsakabi | C4: 870 | D4: 806 | E4: 837 | F4: 2513 | G4: Lehm 'Soovik', farm 'Varsakabi', Kokku 2513
A5: Bianka | B5: Pilvi | C5: 810 | D5: 868 | E5: 837 | F5: 2515 | G5: Lehm 'Bianka', farm 'Pilvi', Kokku 2515
A6: Patsu | B6: Tuuli | C6: 810 | D6: 868 | E6: 775 | F6: 2453 | G6: Lehm 'Patsu', farm 'Tuuli', Kokku 2453
A7: Ehti | B7: Tuuli | C7: 810 | D7: 837 | E7: 868 | F7: 2515 | G7: Lehm 'Ehti', farm 'Tuuli', Kokku 2515
A8: Pidu | B8: Varsakabi | C8: 840 | D8: 837 | E8: 775 | F8: 2452 | G8: Lehm 'Pidu', farm 'Varsakabi', Kokku 2452
A9: Kriti | B9: Tuuli | C9: 870 | D9: 899 | E9: 837 | F9: 2606 | G9: Lehm 'Kriti', farm 'Tuuli', Kokku 2606
A10: Väli | B10: Tuuli | C10: 780 | D10: 837 | E10: 837 | F10: 2454 | G10: Lehm 'Väli', farm 'Tuuli', Kokku 2454
A11: Leele | B11: Pilvi | C11: 750 | D11: 837 | E11: 744 | F11: 2331 | G11: Lehm 'Leele', farm 'Pilvi', Kokku 2331
A12: Müstik | B12: Varsakabi | C12: 840 | D12: 868 | E12: 775 | F12: 2483 | G12: Lehm 'Müstik', farm 'Varsakabi', Kokku 2483
B13: KESKMINE | C13: =AVERAGE(C2:C12) -> 826.3636364 | D13: 851.0909091 | E13: 808.8181818

Sheet Epost
A1: Eesnimi | B1: Perenimi | C1: Epost | D1: Epost
A2: Adeele | B2: Ilves | C2: =CONCATENATE(A2,".",B2,"@firmanimi.ee") -> Adeele.Ilves@firmanimi.ee | D2: =SUBSTITUTE(SUBSTITUTE(SUBSTITUTE(SUBSTITUTE(SUBSTITUTE(SUBSTITUTE(SUBSTITUTE(SUBSTITUTE(SUBSTITUTE(SUBSTITUTE(SUBSTITUTE(SUBSTITUTE(C2,"ä","a"),"ö","o"),"ü","u"),"õ","o"),"ž","z"),"š","s"),"Ä","A"),"Ö","O"),"Ü","U"),"Õ","O"),"Ž","Z"),"Š","S") -> Adeele.Ilves@firmanimi.ee
A3: Anastasia | B3: Ööbik | C3: =CONCATENATE(A3,".",B3,"@firmanimi.ee") -> Anastasia.Ööbik@firmanimi.ee | D3: Anastasia.Oobik@firmanimi.ee
A4: Emma | B4: Mäger | C4: Emma.Mäger@firmanimi.ee | D4: Emma.Mager@firmanimi.ee
A5: Artur | B5: Karu | C5: Artur.Karu@firmanimi.ee | D5: Artur.Karu@firmanimi.ee
A6: Daniel | B6: Kask | C6: Daniel.Kask@firmanimi.ee | D6: Daniel.Kask@firmanimi.ee
A7: Elisabeth | B7: Kiviäär | C7: Elisabeth.Kiviäär@firmanimi.ee | D7: Elisabeth.Kiviaar@firmanimi.ee
A8: Emily | B8: Mägi | C8: Emily.Mägi@firmanimi.ee | D8: Emily.Magi@firmanimi.ee
A9: Emma | B9: Kukkõ | C9: Emma.Kukkõ@firmanimi.ee | D9: Emma.Kukko@firmanimi.ee
A10: Gregor | B10: Kuusk | C10: Gregor.Kuusk@firmanimi.ee | D10: Gregor.Kuusk@firmanimi.ee
A11: Grete | B11: Kütt | C11: Grete.Kütt@firmanimi.ee | D11: Grete.Kutt@firmanimi.ee

Sheet Projektid
B1: Jaanuar | C1: Veebruar | D1: Märts | E1: Aprill | F1: Mai | G1: Juuni | H1: Juuli | I1: August | J1: September | K1: Oktoober | L1: November | M1: Detsember | N1: KOKKU
A2: Projekt 1
A3: Transpordikulu | B3: 234 | C3: 434 | D3: 233 | E3: 233 | F3: 655 | G3: 333 | H3: 435 | I3: 354 | J3: 765 | K3: 234 | L3: 554 | M3: 345 | N3: =SUM(H3:M3,B3:G3) -> 4809
A4: Kontorikulu | B4: 21 | C4: 23 | D4: 55 | E4: 1 | F4: 67 | G4: 22 | H4: 45 | I4: 66 | J4: 89 | K4: 45 | L4: 22 | M4: 65 | N4: =SUM(H4:M4,B4:G4) -> 521
A5: Töötaja 1 töötasu | B5: 1032 | C5: 1032 | D5: 1032 | E5: 1032 | F5: 1032 | G5: 1032 | H5: 1032 | I5: 1032 | J5: 1032 | K5: 1032 | L5: 1032 | M5: 1032 | N5: =SUM(H5:M5,B5:G5) -> 12384
A6: Töötaja 2 töötasu | B6: 1234 | C6: 1234 | D6: 1234 | E6: 1234 | F6: 1234 | G6: 1234 | H6: 1234 | I6: 1234 | J6: 1234 | K6: 1234 | L6: 1234 | M6: 1234 | N6: =SUM(H6:M6,B6:G6) -> 14808
A7: Projekt 1 kokku | B7: =SUM(B3:B6) -> 2521 | C7: =SUM(C3:C6) -> 2723 | D7: 2554 | E7: 2500 | F7: 2988 | G7: 2621 | H7: 2746 | I7: 2686 | J7: 3120 | K7: 2545 | L7: 2842 | M7: 2676 | N7: 32522
A9: Projekt 2
A10: Transpordikulu | B10: 245 | C10: 392 | D10: 402 | E10: 932 | F10: 823 | G10: 112 | H10: 232 | I10: 324 | J10: 183 | K10: 293 | L10: 22 | M10: 234 | N10: =SUM(H10:M10,B10:G10) -> 4194
A11: Kontorikulu | B11: 62 | C11: 23 | D11: 19 | E11: 17 | F11: 5 | G11: 23 | H11: 92 | I11: 71 | J11: 23 | K11: 11 | L11: 17 | M11: 6 | N11: =SUM(H11:M11,B11:G11) -> 369
A12: Töötaja 1 töötasu | B12: 983 | C12: 983 | D12: 983 | E12: 983 | F12: 983 | G12: 983 | H12: 983 | I12: 983 | J12: 983 | K12: 983 | L12: 983 | M12: 983 | N12: =SUM(H12:M12,B12:G12) -> 11796
A13: Töötaja 2 töötasu | B13: 673 | C13: 673 | D13: 673 | E13: 673 | F13: 673 | G13: 673 | H13: 673 | I13: 673 | J13: 673 | K13: 673 | L13: 673 | M13: 673 | N13: =SUM(H13:M13,B13:G13) -> 8076
A14: Projekt 2 kokku | B14: =SUM(B10:B13) -> 1963 | C14: =SUM(C10:C13) -> 2071 | D14: 2077 | E14: 2605 | F14: 2484 | G14: 1791 | H14: 1980 | I14: 2051 | J14: 1862 | K14: 1960 | L14: 1695 | M14: 1896 | N14: =SUM(N10:N13) -> 24435
A16: Projektid KOKKU | B16: =B14+B7 -> 4484 | C16: =C14+C7 -> 4794 | D16: 4631 | E16: 5105 | F16: 5472 | G16: 4412 | H16: 4726 | I16: 4737 | J16: 4982 | K16: 4505 | L16: 4537 | M16: 4572 | N16: 56957
